bitfinex/quotes_SOLUSD_20250803
["timestamp","ask_amount","ask_price","bid_price","bid_amount"]
[1754241577329,0.03,162.4,162.39,62.20362897]
[1754241577535,0.03,162.4,162.39,105.56362897]
[1754241578230,0.03,162.4,162.39,96.3120572]
[1754241578939,0.03,162.4,162.39,105.56362897]
[1754241580248,0.03,162.4,162.39,79.56362897]
[1754241580630,0.03,162.4,162.39,70.3120572]
[1754241581557,0.03,162.4,162.39,26.6520572]
[1754241582365,0.03,162.4,162.39,16.78468397]
[1754241582658,0.7,162.4,162.39,26.03625574]
[1754241582858,0.03,162.4,162.39,26.03625574]
[1754241583641,0.03,162.4,162.39,26.33625574]
[1754241584044,0.03,162.4,162.39,52.33625574]
[1754241584250,0.03,162.4,162.39,52.03625574]
[1754241586756,0.03,162.4,162.39,64.03625574]
[1754241587776,0.03,162.4,162.39,54.78468397]
[1754241587953,0.03,162.4,162.39,64.03625574]
[1754241590363,0.7,162.4,162.39,64.03625574]
[1754241591757,0.03,162.4,162.39,107.37625574]
[1754241593689,0.03,162.4,162.39,81.37625574]
[1754241598401,0.7,162.4,162.39,52.59157177]
[1754241599885,0.03,162.4,162.39,52.59157177]
[1754241600904,0.03,162.4,162.39,82.2920572]
[1754241601412,0.03,162.4,162.39,91.54362897]
[1754241601915,0.03,162.42,162.41,52.03625574]
[1754241602120,0.03,162.42,162.41,95.99198137]
[1754241602290,0.03,162.42,162.41,96.29198137]
[1754241604620,0.03,162.42,162.41,108.29198137]
[1754241605504,0.03,162.44,162.42,16.78468397]
[1754241605701,0.03,162.44,162.43,95.99190555]
[1754241605907,0.03,162.44,162.43,108.29190555]
[1754241606629,0.03,162.44,162.43,96.29190555]
[1754241610218,0.03,162.44,162.43,98.75974655]
[1754241610410,0.03,162.44,162.43,110.75974655]
[1754241613211,0.03,162.44,162.43,110.45974655]
[1754241614827,0.03,162.44,162.43,110.75974655]
[1754241615747,0.03,162.46,162.45,28.78468397]
[1754241616042,0.03,162.46,162.45,81.97182976]
[1754241618950,0.75,162.46,162.45,38.65182976]
[1754241619113,0.75,162.46,162.45,81.97182976]
[1754241619855,0.75,162.46,162.45,52.57157177]
[1754241620820,0.75,162.46,162.45,43.32]
[1754241621544,0.75,162.46,162.44,43.32]
[1754241624763,0.75,162.46,162.43,9.25157177]
[1754241625057,0.75,162.46,162.44,43.32]
[1754241625765,0.75,162.46,162.43,55.32]
[1754241626546,9.25157177,162.45,162.43,12.0]
[1754241626850,9.97157177,162.44,162.43,12.0]
[1754241627586,0.72,162.44,162.43,12.0]
[1754241630959,0.72,162.44,162.41,64.57157177]
[1754241631164,9.28157177,162.46,162.41,64.57157177]
[1754241631165,0.72,162.43,162.41,64.57157177]
[1754241631888,9.28157177,162.46,162.41,64.57157177]
[1754241632096,0.72,162.45,162.42,26.03625574]
[1754241632387,0.72,162.45,162.43,43.32]
[1754241633291,0.03,162.46,162.44,9.25157177]
[1754241633489,0.72,162.45,162.44,43.32]
[1754241636010,9.97157177,162.45,162.41,12.0]
[1754241636292,9.97157177,162.44,162.41,55.32]
[1754241636469,0.72,162.43,162.41,55.32]
[1754241638183,0.72,162.42,162.41,72.10468397]
[1754241638384,0.72,162.42,162.41,55.32]
[1754241638703,0.72,162.42,162.41,12.0]
[1754241638704,14.57593265,162.42,162.41,12.0]
[1754241638887,13.85593265,162.42,162.41,12.0]
[1754241639193,14.57593265,162.42,162.41,12.0]
[1754241639596,14.57593265,162.42,162.39,12.0]
[1754241639899,0.03,162.46,162.38,0.2]
[1754241639900,5.32436088,162.41,162.38,0.2]
[1754241640102,14.57694701,162.4,162.38,0.2]
[1754241640272,14.57694701,162.39,162.38,0.2]
[1754241641879,18.72145992,162.39,162.38,0.2]
[1754241645104,14.57694701,162.39,162.38,0.2]
[1754241649514,14.55724067,162.39,162.38,0.2]
[1754241650332,5.3056689,162.39,162.38,0.2]
[1754241650615,14.52724067,162.39,162.38,0.2]
[1754241651281,9.94157177,162.39,162.38,0.2]
[1754241652691,9.25157177,162.39,162.38,0.2]
[1754241652888,9.25157177,162.4,162.38,0.2]
[1754241655686,9.94157177,162.4,162.38,0.2]
[1754241658127,9.94157177,162.39,162.38,0.2]
[1754241663031,9.94157177,162.39,162.37,0.2]
[1754241663231,9.94157177,162.38,162.37,0.2]
[1754241664134,53.26157177,162.38,162.37,0.2]
[1754241664432,57.85200543,162.38,162.37,0.2]
[1754241664638,61.98366876,162.38,162.37,0.2]
[1754241664847,9.25157177,162.37,162.36,0.2]
[1754241665031,14.53200543,162.37,162.36,0.2]
[1754241668525,18.66338701,162.37,162.36,0.2]
[1754241674168,14.53200543,162.37,162.36,0.2]
[1754241674457,18.66296398,162.37,162.36,0.2]
[1754241676758,18.66490894,162.37,162.36,0.2]
[1754241677428,18.66583364,162.37,162.36,0.2]
[1754241681172,14.53487509,162.37,162.36,0.2]
[1754241681348,18.67447127,162.37,162.36,0.2]
[1754241683144,14.08116795,162.37,162.36,0.2]
[1754241683367,18.68627024,162.37,162.36,0.2]
[1754241687371,61.47095421,162.37,162.36,0.2]
[1754241687576,26.0,162.34,162.28,0.5]
[1754241687773,9.25157177,162.29,162.28,0.5]
[1754241687975,13.85667406,162.29,162.28,0.5]
[1754241688581,4.60510229,162.29,162.28,0.5]
[1754241692062,4.60510229,162.29,162.27,0.5]
[1754241692264,4.60510229,162.28,162.27,0.5]
[1754241692970,4.60510229,162.28,162.26,16.78468397]
[1754241693170,9.25157177,162.3,162.26,28.78468397]
[1754241693392,9.25157177,162.28,162.26,12.0]
[1754241693973,4.60413256,162.27,162.26,12.0]
[1754241694366,4.60413256,162.27,162.26,12.5]
[1754241694612,14.54570433,162.27,162.23,0.7]
[1754241694797,9.25157177,162.25,162.23,12.7]
[1754241695105,0.69,162.27,162.23,0.7]
[1754241695303,9.25157177,162.25,162.23,0.7]
[1754241695512,9.25157177,162.25,162.23,0.2]
[1754241696701,9.25157177,162.25,162.23,0.7]
[1754241696906,9.25157177,162.26,162.23,0.7]
[1754241699875,9.94157177,162.26,162.23,0.2]
[1754241700085,9.25157177,162.25,162.23,0.2]
[1754241700281,9.94157177,162.26,162.23,0.2]
[1754241700690,9.25157177,162.26,162.23,0.2]
[1754241700903,9.25157177,162.27,162.24,0.5]
[1754241703616,9.25157177,162.27,162.23,0.2]
[1754241703617,4.60227077,162.26,162.23,0.7]
[1754241703815,9.94157177,162.27,162.23,0.7]
[1754241704617,4.60312724,162.26,162.23,0.7]
[1754241704953,9.94157177,162.27,162.23,12.7]
[1754241705156,4.60269931,162.26,162.23,12.7]
[1754241705316,9.94157177,162.27,162.23,12.7]
[1754241705516,4.60245547,162.26,162.23,12.7]
[1754241705823,9.94157177,162.27,162.23,12.7]
[1754241706248,4.60201561,162.26,162.23,12.7]
[1754241706462,9.94157177,162.27,162.23,12.7]
[1754241706757,4.6032758,162.26,162.23,12.7]
[1754241706958,9.25157177,162.28,162.23,21.45157177]
[1754241707141,4.60327821,162.27,162.25,9.25157177]
[1754241707342,52.57157177,162.3,162.26,0.5]
[1754241707343,53.24157177,162.3,162.26,0.5]
[1754241707564,4.60520129,162.29,162.26,0.5]
[1754241707769,4.60520129,162.28,162.26,0.5]
[1754241707946,4.60520129,162.27,162.26,0.5]
[1754241708144,4.60520129,162.27,162.25,9.25157177]
[1754241708448,0.67,162.29,162.25,9.75157177]
[1754241708655,4.60669518,162.28,162.25,6.46625399]
[1754241708858,4.60669518,162.27,162.25,6.46625399]
[1754241709050,0.67,162.29,162.25,6.46625399]
[1754241709246,4.60693609,162.28,162.25,6.46625399]
[1754241709459,4.60693609,162.27,162.25,6.46625399]
[1754241709646,0.67,162.29,162.25,6.46625399]
[1754241709964,4.60759811,162.28,162.25,6.46625399]
[1754241710159,4.60759811,162.27,162.25,6.46625399]
[1754241710354,0.67,162.29,162.25,6.46625399]
[1754241710668,4.60853991,162.28,162.25,9.82230542]
[1754241710966,4.60853991,162.27,162.25,9.82230542]
[1754241711142,0.67,162.29,162.25,9.82230542]
[1754241711345,4.60846994,162.28,162.25,9.82230542]
[1754241711544,4.60846994,162.27,162.25,9.82230542]
[1754241711768,0.67,162.29,162.25,17.28468397]
[1754241711966,4.60822535,162.28,162.25,26.60698939]
[1754241712270,4.60822535,162.27,162.25,17.28468397]
[1754241712460,0.67,162.29,162.25,26.60698939]
[1754241712656,4.60870489,162.28,162.25,26.60698939]
[1754241712967,4.60870489,162.27,162.25,26.60698939]
[1754241713269,4.60870489,162.26,162.25,26.10698939]
[1754241714259,5.27870489,162.26,162.24,26.10698939]
[1754241714466,0.67,162.26,162.24,26.10698939]
[1754241714774,5.27908131,162.25,162.23,21.52230542]
[1754241714983,0.67,162.24,162.23,12.2]
[1754241718055,5.28161428,162.24,162.23,12.2]
[1754241718449,5.28161428,162.24,162.23,0.2]
[1754241720745,5.28161428,162.24,162.21,8.92230542]
[1754241720746,5.28164169,162.24,162.21,8.92230542]
[1754241720946,4.61164169,162.23,162.21,8.92230542]
[1754241721150,0.67,162.24,162.21,8.92230542]
[1754241721347,4.61187471,162.23,162.21,8.92230542]
[1754241721579,0.67,162.24,162.2,52.64230542]
[1754241721873,4.61145109,162.23,162.2,53.14230542]
[1754241722061,0.67,162.24,162.2,53.14230542]
[1754241722264,5.28163554,162.23,162.2,53.14230542]
[1754241722476,0.67,162.23,162.2,52.64230542]
[1754241725060,4.61196544,162.22,162.2,52.64230542]
[1754241725260,0.67,162.23,162.2,52.64230542]
[1754241725481,0.67,162.23,162.2,43.32]
[1754241725678,0.67,162.23,162.2,64.64230542]
[1754241726466,0.67,162.24,162.21,9.32230542]
[1754241726670,4.61251791,162.23,162.21,9.32230542]
[1754241726970,0.67,162.25,162.21,9.32230542]
[1754241727168,4.61251523,162.24,162.22,9.32230542]
[1754241727365,4.61251523,162.23,162.22,9.82230542]
[1754241727585,4.61251523,162.23,162.21,9.82230542]
[1754241727883,0.67,162.25,162.21,9.82230542]
[1754241728085,4.61305738,162.24,162.21,9.82230542]
[1754241728254,4.61305738,162.23,162.21,9.82230542]
[1754241728455,0.67,162.25,162.21,9.82230542]
[1754241728660,4.61373643,162.24,162.21,9.82230542]
[1754241728871,4.61373643,162.23,162.21,9.82230542]
[1754241729070,0.67,162.24,162.21,9.82230542]
[1754241729290,4.614489,162.23,162.21,9.82230542]
[1754241729495,0.67,162.24,162.21,9.82230542]
[1754241729675,4.61436467,162.23,162.21,9.32230542]
[1754241729874,0.67,162.24,162.21,9.32230542]
[1754241730072,4.61436557,162.23,162.2,55.82]
[1754241730270,4.61436557,162.22,162.2,55.82]
[1754241730474,0.67,162.23,162.2,65.14230542]
[1754241730676,4.61523938,162.22,162.2,65.14230542]
[1754241730878,0.67,162.23,162.2,65.14230542]
[1754241731078,4.61523848,162.22,162.2,65.14230542]
[1754241731390,0.67,162.22,162.2,55.32]
[1754241731691,4.6164095,162.21,162.2,55.32]
[1754241731899,5.2864095,162.21,162.2,55.32]
[1754241732069,5.2864095,162.21,162.2,43.32]
[1754241732257,5.2864095,162.21,162.19,38.0]
[1754241732595,0.67,162.21,162.19,81.32]
[1754241732766,0.67,162.2,162.19,81.32]
[1754241732965,5.28727227,162.2,162.19,81.32]
[1754241733172,5.28727227,162.2,162.19,43.32]
[1754241733781,14.60957769,162.2,162.13,9.82230542]
[1754241733981,9.32230542,162.18,162.17,0.06]
[1754241734296,13.93957769,162.18,162.17,0.06]
[1754241734674,14.61957769,162.18,162.17,0.06]
[1754241735582,5.29727227,162.18,162.17,0.06]
[1754241736404,14.61957769,162.18,162.17,0.06]
[1754241737185,5.29229737,162.18,162.17,0.06]
[1754241737389,4.61229737,162.18,162.17,0.06]
[1754241738073,4.61229737,162.18,162.17,9.38230542]
[1754241738289,0.68,162.23,162.18,16.78468397]
[1754241738489,0.68,162.23,162.19,9.93886624]
[1754241738490,4.61006891,162.22,162.19,9.93886624]
[1754241738674,4.61006891,162.21,162.19,10.43886624]
[1754241738884,9.35230542,162.25,162.2,9.32230542]
[1754241739085,4.60991524,162.24,162.2,9.82230542]
[1754241739277,4.60991524,162.23,162.2,53.14230542]
[1754241739476,4.60991524,162.22,162.2,43.82]
[1754241739676,0.68,162.24,162.2,53.14230542]
[1754241739978,4.6095164,162.23,162.2,53.14230542]
[1754241740290,0.68,162.24,162.2,53.14230542]
[1754241740593,4.60949198,162.23,162.21,9.32230542]
[1754241740773,4.60964511,162.22,162.21,9.32230542]
[1754241741393,4.60964511,162.22,162.2,52.64230542]
[1754241741587,0.68,162.24,162.2,52.64230542]
[1754241741898,4.60958931,162.23,162.2,52.64230542]
[1754241742214,4.60958931,162.22,162.21,9.32230542]
[1754241742493,4.60958931,162.22,162.21,27.22347419]
[1754241742702,0.03,162.25,162.21,27.22347419]
[1754241742998,4.60925921,162.24,162.22,9.32230542]
[1754241743192,4.60925921,162.23,162.22,9.32230542]
[1754241743792,0.03,162.25,162.22,26.60698939]
[1754241743982,4.6092141,162.24,162.23,0.5]
[1754241744190,4.6092141,162.24,162.23,9.82230542]
[1754241744373,4.6092141,162.24,162.23,53.14230542]
[1754241744573,4.6092141,162.24,162.23,53.75871422]
[1754241745190,0.03,162.25,162.23,53.75871422]
[1754241745382,0.03,162.25,162.24,9.32230542]
[1754241745574,4.63901775,162.25,162.24,9.32230542]
[1754241746506,5.31901775,162.25,162.23,52.64230542]
[1754241746693,0.71,162.25,162.23,52.64230542]
[1754241747410,0.03,162.25,162.24,9.32230542]
[1754241747708,4.63917576,162.25,162.24,9.32230542]
[1754241748330,4.63917576,162.25,162.24,26.60698939]
[1754241748483,4.63917576,162.25,162.24,27.22336019]
[1754241748806,0.03,162.25,162.24,27.22336019]
[1754241749179,0.03,162.25,162.24,26.72336019]
[1754241749495,0.03,162.25,162.24,38.72336019]
[1754241750598,0.03,162.25,162.24,39.22336019]
[1754241750793,0.03,162.25,162.24,48.54566519]
[1754241753812,0.03,162.25,162.24,48.04566519]
[1754241754017,0.71,162.25,162.24,9.322305]
[1754241754509,10.03230542,162.25,162.24,9.322305]
[1754241756314,10.03230542,162.25,162.21,43.3]
[1754241756611,10.00230542,162.24,162.21,43.3]
[1754241756814,0.68,162.23,162.21,43.3]
[1754241757001,0.68,162.22,162.21,43.3]
[1754241759705,10.00230542,162.22,162.19,38.0]
[1754241759892,0.68,162.21,162.19,81.3]
[1754241761817,0.68,162.2,162.19,43.3]
[1754241763014,0.68,162.2,162.18,55.3]
[1754241764012,0.68,162.2,162.18,64.62230542]
[1754241764799,9.32230542,162.22,162.18,64.62230542]
[1754241765004,5.32118762,162.21,162.18,64.62230542]
[1754241765216,0.71,162.21,162.18,64.62230542]
[1754241766638,0.03,162.25,162.2,9.32230542]
[1754241766942,5.32118223,162.24,162.2,53.14230542]
[1754241767103,4.61118223,162.23,162.2,52.64230542]
[1754241767436,4.61118223,162.22,162.2,52.64230542]
[1754241767602,0.71,162.23,162.2,43.32]
[1754241767805,4.61086366,162.22,162.2,43.32]
[1754241768039,0.71,162.23,162.2,43.32]
[1754241768326,4.61086418,162.22,162.2,43.32]
[1754241768529,0.71,162.23,162.2,43.32]
[1754241768706,4.61084131,162.22,162.2,43.32]
[1754241768904,0.71,162.22,162.2,43.32]
[1754241775842,0.71,162.22,162.2,52.64230542]
[1754241776138,4.61089756,162.21,162.2,64.64230542]
[1754241777214,5.32089756,162.21,162.2,12.0]
[1754241777518,5.32073862,162.21,162.2,12.0]
[1754241779317,14.64304404,162.21,162.18,0.06]
[1754241779626,14.64304404,162.2,162.18,0.06]
[1754241779826,0.03,162.23,162.18,0.06]
[1754241779827,14.64304404,162.19,162.18,0.06]
[1754241781750,18.79138113,162.19,162.18,0.06]
[1754241784018,35.5760651,162.19,162.18,0.06]
[1754241784215,35.5760651,162.19,162.17,0.06]
[1754241784216,26.10698939,162.18,162.17,0.06]
[1754241784434,78.8760651,162.18,162.17,0.06]
[1754241788548,81.3501641,162.18,162.17,0.06]
[1754241791236,62.09138113,162.18,162.17,0.06]
[1754241793159,57.94304404,162.18,162.17,0.06]
[1754241794136,74.61073862,162.18,162.17,0.06]
[1754241794459,83.93304404,162.18,162.17,0.06]
[1754241795641,83.23304404,162.18,162.17,0.06]
[1754241796353,83.93304404,162.18,162.17,0.06]
[1754241800341,83.23304404,162.18,162.17,0.06]
[1754241800544,57.23304404,162.18,162.17,0.06]
[1754241800773,57.93304404,162.18,162.17,0.06]
[1754241808068,57.91006318,162.18,162.17,0.06]
[1754241809576,62.03963636,162.18,162.17,0.06]
[1754241813990,62.0462692,162.18,162.17,0.06]
[1754241814283,57.4518786,162.18,162.17,0.06]
[1754241814580,62.04749494,162.18,162.17,0.06]
[1754241815456,61.34749494,162.18,162.17,0.06]
[1754241815994,52.02518952,162.18,162.17,0.06]
[1754241816177,61.34749494,162.18,162.17,0.06]
[1754241816373,62.04749494,162.18,162.17,0.06]
[1754241817185,61.34749494,162.18,162.17,0.06]
[1754241818789,8.72518952,162.18,162.17,0.56]
[1754241818974,52.02518952,162.18,162.17,0.56]
[1754241819174,4.59561634,162.18,162.17,9.88230542]
[1754241819392,4.09561634,162.18,162.17,10.49894228]
[1754241819593,0.03,162.21,162.17,27.28362625]
[1754241819907,0.03,162.21,162.18,9.32230542]
[1754241821978,0.03,162.21,162.2,26.10698939]
[1754241822169,0.03,162.21,162.2,9.32230542]
[1754241822368,0.03,162.21,162.19,9.32230542]
[1754241822764,0.03,162.21,162.17,0.06]
[1754241822971,0.03,162.21,162.18,9.32230542]
[1754241823197,0.03,162.21,162.2,9.32230542]
[1754241826616,0.03,162.21,162.19,9.32230542]
[1754241830506,0.03,162.21,162.17,0.06]
[1754241830507,53.30230542,162.2,162.17,0.06]
[1754241830710,9.32230542,162.18,162.17,0.06]
[1754241831220,10.02230542,162.18,162.17,0.06]
[1754241831519,14.62023549,162.18,162.17,0.06]
[1754241832211,18.75897244,162.18,162.17,0.06]
[1754241834634,18.75843869,162.18,162.17,0.06]
[1754241835729,9.43613327,162.18,162.17,0.06]
[1754241835933,18.75843869,162.18,162.17,0.06]
[1754241840136,18.76016797,162.18,162.17,0.06]
[1754241842037,14.16104237,162.18,162.17,0.06]
[1754241842242,18.76008498,162.18,162.17,0.06]
[1754241850660,14.16104237,162.18,162.17,0.06]
[1754241850845,18.76027751,162.18,162.17,0.06]
[1754241853251,18.7603068,162.18,162.17,0.06]
[1754241855243,62.0403068,162.18,162.17,0.06]
[1754241856279,8.73800138,162.18,162.17,0.06]
[1754241856448,4.59926443,162.18,162.17,0.06]
[1754241865058,4.62926443,162.18,162.17,0.06]
[1754241867586,14.64156985,162.18,162.17,0.06]
[1754241867882,18.7859137,162.18,162.17,0.06]
[1754241868777,15.44008511,162.18,162.17,0.06]
[1754241869404,9.46360828,162.18,162.17,0.06]
[1754241869688,15.44008511,162.18,162.17,0.06]
[1754241870559,15.44008511,162.18,162.16,0.06]
[1754241870560,20.61458033,162.18,162.16,0.06]
[1754241870784,61.3468404,162.17,162.16,0.06]
[1754241870996,62.0368404,162.17,162.16,0.06]
[1754241871174,61.3468404,162.17,162.16,0.06]
[1754241871366,62.0368404,162.17,162.16,0.06]
[1754241873380,18.7768404,162.17,162.16,0.06]
[1754241873577,62.0368404,162.17,162.16,0.06]
[1754241876815,8.74360828,162.17,162.16,0.06]
[1754241878719,4.59926443,162.17,162.16,0.06]
[1754241879383,8.74360828,162.17,162.16,0.06]
[1754241880580,4.59926443,162.17,162.16,0.06]
[1754241884418,4.59926443,162.17,162.16,26.86459097]
[1754241884989,0.03,162.18,162.17,16.78468397]
[1754241885219,0.03,162.18,162.17,26.18791609]
[1754241887729,0.03,162.18,162.17,38.18791609]
[1754241888309,0.03,162.2,162.19,42.78468397]
[1754241888499,0.03,162.2,162.19,52.74447691]
[1754241888689,0.03,162.2,162.19,52.80447691]
[1754241889990,0.03,162.2,162.19,96.06447691]
[1754241891317,0.03,162.2,162.19,108.06447691]
[1754241891495,0.03,162.2,162.19,117.40770903]
[1754241893993,0.03,162.2,162.19,108.06447691]
[1754241897318,0.03,162.21,162.2,11.97]
[1754241897525,0.03,162.21,162.2,21.31323212]
[1754241903615,0.69,162.21,162.2,21.31323212]
[1754241904608,0.03,162.21,162.2,21.31323212]
[1754241904906,0.03,162.21,162.2,47.50114821]
[1754241905313,0.03,162.23,162.22,38.06791609]
[1754241905497,0.03,162.23,162.22,81.92436289]
[1754241905703,0.03,162.23,162.22,81.98436289]
[1754241906401,0.03,162.23,162.22,222.04113077]
[1754241906597,0.03,162.23,162.22,230.76791609]
[1754241909403,0.03,162.25,162.24,26.0]
[1754241909602,0.03,162.25,162.24,81.82428689]
[1754241909804,0.03,162.27,162.26,54.62468397]
[1754241910032,0.03,162.27,162.26,81.82421092]
[1754241910223,0.03,162.27,162.26,81.88421092]
[1754241910532,0.66,162.32,162.3,42.78468397]
[1754241910710,0.66,162.32,162.31,69.96402107]
[1754241911507,0.03,162.37,162.32,16.78468397]
[1754241911715,0.03,162.37,162.33,9.34323212]
[1754241911914,0.03,162.37,162.33,52.56323212]
[1754241912434,0.66,162.34,162.33,52.56323212]
[1754241913540,0.86,162.35,162.34,16.78468397]
[1754241913835,0.2,162.35,162.34,26.74390721]
[1754241914014,0.9,162.35,162.33,11.84]
[1754241914528,0.7,162.34,162.33,21.18323212]
[1754241914708,0.7,162.34,162.33,38.58394516]
[1754241914909,0.7,162.34,162.33,37.96791609]
[1754241915315,0.7,162.34,162.33,38.58394516]
[1754241917734,0.7,162.34,162.33,12.45602907]
[1754241917914,0.7,162.34,162.32,52.56323212]
[1754241920935,0.7,162.33,162.32,60.00468397]
[1754241921139,0.9,162.35,162.32,43.22]
[1754241921333,0.7,162.34,162.33,9.34323212]
[1754241922138,0.7,162.34,162.32,52.56323212]
[1754241922442,0.7,162.34,162.32,43.22]
[1754241922743,9.34323212,162.33,162.28,21.18323212]
[1754241923039,0.7,162.32,162.29,59.98468397]
[1754241923936,0.7,162.32,162.29,69.32791609]
[1754241924740,0.7,162.32,162.29,59.98468397]
[1754241924930,0.7,162.32,162.29,71.82468397]
[1754241926759,10.04323212,162.32,162.29,71.82468397]
[1754241927046,0.7,162.31,162.29,71.82468397]
[1754241927251,0.7,162.31,162.29,55.04]
[1754241928945,0.7,162.3,162.29,71.82468397]
[1754241930638,0.7,162.32,162.29,71.82468397]
[1754241931362,0.03,162.34,162.3,26.12791609]
[1754241931363,0.73,162.34,162.3,26.12791609]
[1754241931538,0.03,162.34,162.32,16.78468397]
[1754241931736,0.03,162.34,162.33,43.2]
[1754241931950,0.73,162.34,162.33,43.2]
[1754241932945,0.03,162.34,162.33,71.82468397]
[1754241933245,0.03,162.34,162.33,81.16791609]
[1754241933451,0.03,162.34,162.33,72.44071304]
[1754241933639,0.03,162.34,162.33,81.78394516]
[1754241933843,0.03,162.34,162.33,72.44071304]
[1754241934050,0.73,162.34,162.33,11.84]
[1754241934225,0.73,162.34,162.33,55.04]
[1754241935432,0.03,162.34,162.33,55.65602907]
[1754241936039,0.03,162.34,162.33,72.44071304]
[1754241937359,0.03,162.34,162.33,81.78394516]
[1754241937536,0.03,162.34,162.33,81.84394516]
[1754241938232,0.03,162.34,162.33,107.84394516]
[1754241939329,0.03,162.34,162.33,64.58394516]
[1754241939535,0.73,162.34,162.33,98.44071304]
[1754241940572,0.73,162.34,162.33,107.78394516]
[1754241941652,0.73,162.34,162.33,81.78394516]
[1754241942466,0.73,162.34,162.33,11.84]
[1754241942768,0.73,162.34,162.33,55.04]
[1754241943148,0.03,162.34,162.33,55.04]
[1754241943344,0.73,162.34,162.33,71.82468397]
[1754241943542,0.73,162.34,162.33,72.44071304]
[1754241946675,0.73,162.34,162.33,55.04]
[1754241948965,0.03,162.34,162.33,60.60071304]
[1754241950755,0.72,162.34,162.33,60.60071304]
[1754241951158,0.03,162.34,162.33,60.60071304]
[1754241951743,0.72,162.34,162.33,60.60071304]
[1754241952148,0.72,162.34,162.33,17.40071304]
[1754241952340,0.72,162.34,162.33,60.60071304]
[1754241952759,0.03,162.34,162.33,60.60071304]
[1754241953358,0.03,162.34,162.33,72.44071304]
[1754241953674,4.64611387,162.34,162.33,72.44071304]
[1754241959984,4.64722299,162.34,162.33,72.44071304]
[1754241961159,5.33722299,162.34,162.33,72.44071304]
[1754241964656,5.33695013,162.34,162.33,72.44071304]
[1754241967386,4.64695013,162.34,162.33,72.44071304]
[1754241967615,5.33695013,162.34,162.33,72.44071304]
[1754241969606,5.33695013,162.34,162.33,72.42071304]
[1754241970618,5.33695013,162.34,162.33,71.80468397]
[1754241971508,5.33695013,162.34,162.33,28.62468397]
[1754241971702,5.33695013,162.34,162.33,71.80468397]
[1754241976520,4.64695013,162.34,162.33,71.80468397]
[1754241978596,4.64695013,162.34,162.33,55.02]
[1754241978597,5.34695013,162.34,162.33,55.02]
[1754241980004,5.34695013,162.34,162.33,43.18]
[1754241981339,11.3076409,162.34,162.33,43.18]
[1754241981534,15.46762635,162.34,162.33,43.18]
[1754241981735,15.46762635,162.34,162.31,11.84]
[1754241981918,9.47693558,162.33,162.32,43.18]
[1754241982105,15.43762635,162.33,162.32,43.18]
[1754241983128,11.2776409,162.33,162.32,43.18]
[1754241984937,11.28200676,162.33,162.32,43.18]
[1754241985930,11.28200676,162.33,162.32,55.02]
[1754241988333,5.32131599,162.33,162.32,55.02]
[1754241988631,15.44016537,162.33,162.32,55.02]
[1754241988945,15.44016537,162.33,162.28,12.45621888]
[1754241989108,5.96069077,162.31,162.29,43.18]
[1754241989307,4.62131599,162.3,162.29,43.18]
[1754241989605,4.62131599,162.3,162.29,78.44155565]
[1754241990148,4.62131599,162.3,162.29,83.06287165]
[1754241990312,0.03,162.34,162.29,83.06287165]
[1754241990634,4.61781522,162.33,162.31,16.78468397]
[1754241990805,0.03,162.34,162.32,43.79606702]
[1754241991007,4.61780792,162.33,162.32,72.42075099]
[1754241992322,4.61780792,162.33,162.32,77.03855899]
[1754241994850,4.61780792,162.33,162.32,83.05924976]
[1754241995050,4.61780792,162.33,162.32,103.09855899]
[1754241995340,0.03,162.34,162.33,16.78468397]
[1754241995545,4.64684273,162.34,162.33,16.84468397]